bitfinex/quotes_SOLUSD_20241016
["timestamp","ask_amount","ask_price","bid_price","bid_amount"]
[1729094113879,29.6243,155.58,155.53,30.206084]
[1729094114076,29.6243,155.58,155.54,6.4292]
[1729094114661,29.6243,155.58,155.53,30.206384]
[1729094114958,16.581,155.58,155.53,23.776884]
[1729094115256,16.581,155.58,155.54,6.429]
[1729094115665,16.581,155.58,155.55,6.4286]
[1729094116278,16.581,155.58,155.54,6.4291]
[1729094118158,6.428,155.57,155.53,30.206284]
[1729094118764,23.0086,155.58,155.53,30.206284]
[1729094120387,23.0086,155.58,155.54,6.4288]
[1729094120388,16.581,155.58,155.54,6.4288]
[1729094121387,23.0086,155.58,155.53,23.776884]
[1729094121587,23.0086,155.58,155.53,30.206384]
[1729094123094,16.9107612,155.62,155.56,24.81945977]
[1729094123300,0.6205612,155.62,155.61,6.4263]
[1729094124163,0.6205612,155.62,155.61,30.203184]
[1729094124582,0.6205612,155.62,155.61,50.203184]
[1729094125994,0.6205612,155.62,155.61,75.02264377]
[1729094143891,0.6205612,155.62,155.61,66.05558915]
[1729094150706,15.5982,155.73,155.67,23.776884]
[1729094150915,15.5982,155.73,155.67,39.62928915]
[1729094151284,6.422,155.72,155.67,46.05278915]
[1729094151602,15.5982,155.73,155.67,46.05278915]
[1729094151792,6.4222,155.71,155.67,46.05278915]
[1729094151989,6.4221,155.72,155.68,6.4233]
[1729094152300,6.4229,155.7,155.67,23.776884]
[1729094152886,15.5982,155.73,155.67,23.776884]
[1729094153094,31.6521,155.73,155.65,23.776884]
[1729094154305,31.6521,155.73,155.65,30.201284]
[1729094154306,6.4231,155.69,155.65,30.201284]
[1729094155108,6.4222,155.71,155.67,30.200684]
[1729094155281,31.6521,155.73,155.67,23.776884]
[1729094155282,15.5982,155.73,155.67,23.776884]
[1729094155486,6.4217,155.72,155.69,23.776884]
[1729094156795,22.0197,155.73,155.69,30.199784]
[1729094157114,0.6205612,155.77,155.72,15.85240515]
[1729094157289,0.6205612,155.77,155.76,39.62928915]
[1729094157610,0.6205612,155.77,155.76,46.04938915]
[1729094157798,0.6205612,155.77,155.76,30.196984]
[1729094158987,0.6205612,155.77,155.74,22.472]
[1729094159489,0.6205612,155.77,155.75,23.776884]
[1729094161005,6.4205,155.75,155.71,16.0553]
[1729094161213,6.4201,155.76,155.71,22.4773]
[1729094162510,6.4201,155.76,155.72,23.776884]
[1729094163803,0.6205612,155.77,155.72,23.776884]
[1729094164014,7.0402612,155.77,155.73,6.4213]
[1729094164204,7.0402612,155.77,155.72,23.776884]
[1729094164511,7.0402612,155.77,155.72,30.198384]
[1729094165016,6.4203,155.76,155.72,30.198384]
[1729094165907,0.6205612,155.77,155.68,16.0578]
[1729094166106,0.6205612,155.77,155.71,23.776884]
[1729094166107,6.4206,155.75,155.71,23.776884]
[1729094168923,6.4227,155.7,155.66,15.77578511]
[1729094169123,6.0047,155.74,155.65,16.061]
[1729094169324,6.0047,155.74,155.66,30.0]
[1729094169627,6.4238,155.67,155.62,16.0643]
[1729094169811,6.4238,155.67,155.62,22.4901]
[1729094170201,16.0559,155.71,155.62,16.0643]
[1729094170523,6.4249,155.65,155.6,9.35168511]
[1729094170823,6.4242,155.66,155.61,20.0]
[1729094171199,6.4242,155.66,155.61,26.4263]
[1729094171411,6.4251,155.64,155.6,9.35168511]
[1729094171622,6.4251,155.64,155.59,22.4942]
[1729094171797,6.4251,155.64,155.6,23.776884]
[1729094172203,6.2577,155.67,155.6,23.776884]
[1729094172403,6.4245,155.66,155.61,6.4262]
[1729094172620,6.4245,155.66,155.62,23.776884]
[1729094175310,6.4247,155.65,155.62,23.776884]
[1729094181223,6.4252,155.64,155.6,6.4265]
[1729094181425,6.4252,155.64,155.59,22.4941]
[1729094181928,6.4256,155.63,155.59,22.4941]
[1729094182226,13.28144747,155.71,155.56,76.42477534]
[1729094182227,6.4266,155.61,155.57,6.4279]
[1729094182407,6.426,155.62,155.57,6.4279]
[1729094183121,16.5654,155.65,155.58,16.0686]
[1729094183325,6.4251,155.64,155.6,6.4267]
[1729094184015,6.4251,155.64,155.58,40.79587935]
[1729094184016,6.4251,155.64,155.59,30.203884]
[1729094184934,15.9439,155.69,155.6,24.72727935]
[1729094185227,6.4238,155.67,155.63,6.4251]
[1729094185525,16.0586,155.68,155.61,23.776884]
[1729094185716,16.0586,155.68,155.6,23.776884]
[1729094185913,16.0586,155.68,155.6,30.203184]
[1729094186115,15.9439,155.69,155.62,23.776884]
[1729094186321,6.4239,155.67,155.63,6.4253]
[1729094186521,6.4245,155.66,155.62,30.202584]
[1729094186720,6.4239,155.67,155.63,6.4254]
[1729094187524,15.9439,155.69,155.62,23.776884]
[1729094187730,6.4242,155.66,155.62,30.202684]
[1729094190045,6.4239,155.67,155.63,6.4253]
[1729094191739,6.4242,155.66,155.62,30.202684]
[1729094192612,15.9439,155.69,155.62,23.776884]
[1729094192810,6.4237,155.68,155.65,23.776884]
[1729094193220,22.5407,155.71,155.65,23.776884]
[1729094193221,6.4847,155.71,155.65,23.776884]
[1729094193427,6.4218,155.72,155.68,6.4234]
[1729094193619,6.421,155.74,155.69,30.199584]
[1729094194034,6.4214,155.73,155.69,30.199584]
[1729094194716,6.421,155.74,155.7,6.4225]
[1729094195552,6.421,155.74,155.69,39.833984]
[1729094195731,6.421,155.74,155.69,46.256884]
[1729094196530,6.421,155.74,155.69,39.833984]
[1729094196728,6.4206,155.75,155.71,30.198984]
[1729094196929,0.6205612,155.77,155.73,6.4213]
[1729094197814,7.0403612,155.77,155.73,6.4213]
[1729094200348,0.6205612,155.77,155.74,23.776884]
[1729094200533,0.6205612,155.77,155.75,6.4205]
[1729094201829,0.6205612,155.77,155.76,6.4201]
[1729094202027,0.6205612,155.77,155.76,30.196984]
[1729094203147,0.6205612,155.77,155.76,54.92426335]
[1729094203944,0.6205612,155.77,155.76,90.61383846]
[1729094204150,0.6205612,155.77,155.76,90.48834846]
[1729094204648,0.6205612,155.77,155.76,81.13666335]
[1729094204845,0.6205612,155.77,155.76,82.54561027]
[1729094208345,0.6205612,155.77,155.76,74.92426335]
[1729094209946,0.6205612,155.77,155.76,50.196984]
[1729094211559,0.6205612,155.77,155.73,9.35168511]
[1729094211741,0.6205612,155.77,155.72,16.0541]
[1729094212436,6.4202,155.76,155.72,22.4757]
[1729094213236,6.4202,155.76,155.73,23.776884]
[1729094216258,0.6205612,155.77,155.73,23.776884]
[1729094216469,7.0404612,155.77,155.73,30.197984]
[1729094219055,0.6205612,155.77,155.73,23.776884]
[1729094219263,6.4201,155.76,155.73,23.776884]
[1729094219840,0.6205612,155.77,155.7,9.35168511]
[1729094220059,0.6205612,155.77,155.71,23.776884]
[1729094220261,16.2952,155.76,155.71,23.776884]
[1729094220646,6.4206,155.75,155.71,23.776884]
[1729094220858,6.4209,155.74,155.71,23.776884]
[1729094223546,6.4216,155.73,155.7,23.776884]
[1729094224168,6.4206,155.75,155.7,23.776884]
[1729094224370,6.4202,155.76,155.72,30.198384]
[1729094225248,0.6205612,155.77,155.72,23.776884]
[1729094225447,6.4213,155.73,155.69,6.4227]
[1729094225745,15.6063,155.75,155.65,16.0609]
[1729094225960,6.4234,155.68,155.64,19.45248913]
[1729094226272,6.4235,155.68,155.64,19.45268913]
[1729094226857,6.4235,155.68,155.62,31.853]
[1729094227072,6.4235,155.68,155.63,6.4254]
[1729094227254,6.4235,155.68,155.64,23.776884]
[1729094229270,6.4239,155.67,155.64,23.776884]
[1729094229654,16.0539,155.73,155.64,23.776884]
[1729094229655,6.4235,155.68,155.64,23.776884]
[1729094230171,6.4235,155.68,155.63,23.776884]
[1729094230172,6.4245,155.66,155.63,23.776884]
[1729094230478,6.4245,155.66,155.59,47.58398511]
[1729094230479,6.425,155.65,155.6,6.4267]
[1729094231478,6.425,155.65,155.61,23.776884]
[1729094232747,6.425,155.65,155.62,23.776884]
[1729094233771,15.2393,155.68,155.62,30.202384]
[1729094235370,15.2393,155.68,155.59,15.77868511]
[1729094235573,6.4259,155.62,155.57,16.0694]
[1729094235776,16.0603,155.67,155.58,6.4273]
[1729094235949,6.4255,155.63,155.59,6.4271]
[1729094236150,15.2393,155.68,155.61,6.4262]
[1729094236363,6.4245,155.66,155.61,6.4262]
[1729094237680,6.4246,155.65,155.61,6.4262]
[1729094239072,15.2393,155.68,155.61,23.776884]
[1729094239281,15.2393,155.68,155.63,6.4251]
[1729094239574,15.2393,155.68,155.63,23.776884]
[1729094239575,6.4241,155.67,155.63,23.776884]
[1729094239872,15.2393,155.68,155.62,23.776884]
[1729094240172,16.3334,155.76,155.67,23.776884]
[1729094240470,16.3334,155.76,155.69,23.776884]
[1729094240471,6.4216,155.73,155.69,23.776884]
[1729094240671,6.4216,155.73,155.68,23.776884]
[1729094240875,6.4216,155.73,155.69,6.4229]
[1729094241077,6.4209,155.74,155.69,6.4229]
[1729094241779,6.4222,155.71,155.67,22.4826]
[1729094249156,16.4334,155.76,155.63,26.41414351]
[1729094249361,6.4231,155.69,155.65,6.4246]
[1729094251160,6.4234,155.68,155.64,46.263884]
[1729094251362,6.4242,155.67,155.63,6.4254]
[1729094251566,15.6483,155.7,155.61,16.0654]
[1729094251751,6.4242,155.66,155.62,6.4257]
[1729094252480,6.4248,155.65,155.61,22.4915]
[1729094252978,6.4252,155.64,155.61,16.0654]
[1729094253151,6.4252,155.64,155.57,67.52954351]
[1729094253352,6.4252,155.64,155.59,6.427]
[1729094253779,6.4247,155.65,155.61,6.4261]
[1729094253973,16.0578,155.69,155.6,16.0664]
[1729094254176,6.4245,155.66,155.61,6.4262]
[1729094254685,16.0578,155.69,155.61,6.4262]
[1729094254881,6.4247,155.65,155.61,6.4262]
[1729094256176,16.0578,155.69,155.65,6.4244]
[1729094256177,6.4231,155.69,155.65,6.4244]
[1729094256364,6.4231,155.69,155.61,23.776884]
[1729094256365,6.4231,155.69,155.61,32.26190244]
[1729094256573,6.4234,155.68,155.64,22.4872]
[1729094258587,6.4231,155.69,155.64,22.4872]
[1729094259973,6.4234,155.68,155.64,22.4872]
[1729094260468,6.4254,155.64,155.6,6.4266]
[1729094260981,6.4245,155.66,155.61,6.4262]
[1729094261285,6.4246,155.65,155.61,6.4262]
[1729094262480,6.4248,155.65,155.61,30.202984]
[1729094262790,6.4248,155.65,155.6,22.4929]
[1729094264573,16.0577,155.69,155.6,16.0664]
[1729094264782,6.4247,155.65,155.61,6.4261]
[1729094266070,6.4246,155.66,155.62,6.4258]
[1729094267770,6.4237,155.68,155.64,6.4248]
[1729094268267,15.6483,155.7,155.64,16.0623]
[1729094268485,22.0711,155.7,155.66,6.4242]
[1729094268787,6.423,155.69,155.65,6.4245]
[1729094270386,6.4239,155.67,155.63,6.4254]
[1729094270687,6.4235,155.68,155.64,30.201884]
[1729094271283,15.6483,155.7,155.64,23.776884]
[1729094271584,6.4231,155.69,155.65,22.4858]
[1729094271791,6.4236,155.68,155.65,16.0613]
[1729094273272,6.4231,155.69,155.65,16.0613]
[1729094273785,15.6483,155.7,155.65,16.0613]
[1729094273984,6.4213,155.73,155.69,6.4229]
[1729094274190,6.4211,155.74,155.7,6.4224]
[1729094275998,6.4227,155.7,155.66,30.200784]
[1729094276173,6.4222,155.71,155.67,6.4238]
[1729094276684,6.4222,155.71,155.66,30.200984]
[1729094276889,16.0536,155.73,155.65,16.0612]
[1729094277071,16.0536,155.73,155.62,16.0639]
[1729094277072,4.79941725,155.72,155.62,16.0639]
[1729094277388,6.4237,155.68,155.63,6.4252]
[1729094277566,6.4241,155.67,155.62,22.4897]
[1729094277763,6.4243,155.66,155.62,16.0639]
[1729094277963,6.4243,155.66,155.62,22.4896]
[1729094278198,6.4252,155.64,155.6,6.4266]
[1729094278400,6.4252,155.64,155.59,16.0675]
[1729094278565,16.058,155.69,155.59,16.0675]
[1729094278566,6.4255,155.63,155.59,22.4945]
[1729094279076,16.058,155.69,155.59,22.4945]
[1729094279281,6.4252,155.64,155.59,22.4945]
[1729094280267,6.4246,155.65,155.6,6.4263]
[1729094280499,6.4246,155.65,155.61,6.4262]
[1729094280868,16.058,155.69,155.61,6.4262]
[1729094281069,6.4243,155.66,155.61,6.4262]
[1729094281471,15.0235,155.7,155.62,23.776884]
[1729094281683,4.79994034,155.69,155.62,23.776884]
[1729094281912,6.4222,155.71,155.67,6.4238]
[1729094282096,6.3878,155.73,155.66,6.4241]
[1729094282298,6.4223,155.71,155.66,6.4241]
[1729094282483,6.4226,155.7,155.66,6.4241]
[1729094283109,15.0925,155.74,155.67,16.0592]
[1729094283312,6.422,155.72,155.67,22.4829]
[1729094283617,16.0558,155.71,155.63,23.776884]
[1729094283902,6.4239,155.67,155.63,23.776884]
[1729094284478,6.4239,155.67,155.63,30.202184]
[1729094284685,16.0558,155.71,155.63,30.202184]
[1729094284979,6.4235,155.68,155.63,30.202184]
[1729094286477,6.4238,155.67,155.63,30.202184]
[1729094288218,6.4238,155.67,155.63,6.4253]
[1729094290705,15.0925,155.74,155.64,23.776884]
[1729094290884,12.48299768,155.73,155.64,20.0]
[1729094291087,6.422,155.72,155.68,6.4234]
[1729094291288,6.4222,155.71,155.67,6.4237]
[1729094292207,6.4217,155.72,155.68,6.4233]
[1729094292801,15.0925,155.74,155.65,23.776884]
[1729094293006,6.4231,155.69,155.65,23.776884]
[1729094293581,6.4231,155.69,155.65,30.201484]
[1729094294321,6.422,155.72,155.66,16.0603]
[1729094294608,6.4218,155.72,155.68,22.4816]
[1729094296516,15.0925,155.74,155.68,22.4816]
[1729094296720,4.8016099,155.73,155.7,6.4225]
[1729094297032,0.6205612,155.77,155.69,43.59977375]
[1729094297313,0.6205612,155.77,155.75,6.4205]
[1729094300293,0.6205612,155.77,155.74,6.4208]
[1729094300915,0.6205612,155.77,155.75,6.4204]
[1729094301417,0.6205612,155.77,155.75,23.776884]
[1729094301626,0.6205612,155.77,155.76,30.196984]
[1729094302926,7.0403612,155.77,155.73,30.198084]
[1729094303228,6.4225,155.71,155.67,16.0587]
[1729094304111,6.4218,155.72,155.67,22.4825]
[1729094304615,6.4218,155.72,155.68,30.200184]
[1729094306714,6.4209,155.74,155.7,23.776884]
[1729094306917,6.4209,155.74,155.69,6.4229]
[1729094307098,6.4209,155.74,155.7,23.776884]
[1729094309317,6.4217,155.73,155.68,30.200284]
[1729094310110,6.4219,155.72,155.68,30.200284]
[1729094311313,6.4222,155.71,155.67,16.0587]
[1729094311515,16.0512,155.76,155.67,16.0587]
[1729094311715,6.4226,155.7,155.67,16.0587]
[1729094314215,16.0512,155.76,155.67,16.0587]
[1729094314424,6.4223,155.71,155.67,16.0587]
[1729094314732,6.7408612,155.77,155.65,20.0]
[1729094314733,6.8408612,155.77,155.65,20.0]
[1729094314932,16.0527,155.74,155.66,23.776884]
[1729094315226,6.4237,155.68,155.65,23.776884]
[1729094316335,6.4231,155.69,155.65,23.776884]
[1729094316511,6.4227,155.7,155.65,23.776884]
[1729094316720,6.4227,155.7,155.66,6.4242]
[1729094316918,6.423,155.69,155.65,30.201484]
[1729094320521,6.423,155.69,155.65,23.776884]
[1729094324117,6.423,155.69,155.65,30.201384]
[1729094327446,6.423,155.69,155.64,16.062]
[1729094327447,15.3636,155.72,155.6,22.3765]
[1729094327738,6.4242,155.66,155.63,23.776884]
[1729094329337,6.4255,155.63,155.58,16.0681]
[1729094329523,16.061,155.66,155.58,16.0681]
[1729094329723,6.4255,155.63,155.59,6.427]
[1729094331418,6.4255,155.63,155.59,23.776884]
[1729094332125,15.2302,155.65,155.59,23.776884]
[1729094332439,6.4258,155.63,155.59,23.776884]
[1729094332642,6.4251,155.64,155.6,6.4267]
[1729094332943,6.4251,155.64,155.59,30.203884]
[1729094333329,6.4255,155.63,155.59,30.203884]
[1729094334521,15.3694,155.69,155.6,20.0]
[1729094334726,6.4241,155.67,155.63,6.4251]
[1729094335421,6.4268,155.6,155.52,55.43875808]
[1729094335624,6.4263,155.61,155.56,6.4279]
[1729094335828,6.4263,155.61,155.57,6.4278]
[1729094336034,0.1,155.68,155.54,16.0726]
[1729094336220,6.4263,155.61,155.57,6.4278]
[1729094336417,6.4263,155.61,155.58,23.776884]
[1729094336614,6.426,155.62,155.58,23.776884]
[1729094336846,6.426,155.62,155.58,6.4275]
[1729094337050,16.0601,155.67,155.57,23.776884]
[1729094337248,6.4264,155.61,155.57,30.204684]
[1729094339839,6.426,155.62,155.58,6.4274]
[1729094340023,6.4255,155.63,155.59,6.4268]
[1729094340414,16.0601,155.67,155.58,16.0685]
[1729094340619,6.4259,155.62,155.58,22.496]
[1729094341319,6.4268,155.6,155.57,23.776884]
[1729094341527,6.4263,155.61,155.58,23.776884]
[1729094343535,6.4263,155.61,155.57,6.4279]
[1729094343536,6.4263,155.61,155.56,23.776884]
[1729094343739,6.4263,155.61,155.55,20.0]
[1729094344339,6.4259,155.62,155.55,20.0]
[1729094344927,6.4259,155.62,155.58,6.4271]
[1729094347139,6.4243,155.66,155.62,6.4256]
[1729094347334,15.3694,155.69,155.61,16.0653]
[1729094347535,15.3694,155.69,155.6,19.81579535]
[1729094347846,15.8193,155.73,155.64,19.81579535]
[1729094348056,6.4223,155.71,155.67,6.4237]
[1729094348558,6.4223,155.71,155.66,6.4241]
[1729094348845,6.4218,155.72,155.67,6.4234]
[1729094349059,6.4223,155.71,155.67,6.4234]
[1729094349629,6.4239,155.67,155.62,6.4255]
[1729094349841,6.4243,155.66,155.61,22.491]
[1729094350333,16.0569,155.7,155.61,16.0649]
[1729094350535,23.776884,155.69,155.61,16.0649]
[1729094350737,29.781884,155.69,155.61,16.0649]
[1729094351148,6.4247,155.65,155.61,16.0649]
[1729094354361,6.4247,155.65,155.61,22.4912]
[1729094354531,29.781884,155.69,155.62,6.4255]
[1729094354732,6.4244,155.66,155.62,6.4255]
[1729094355059,6.4244,155.66,155.61,22.4911]
[1729094355732,6.4244,155.66,155.62,6.4257]
[1729094356757,6.4244,155.66,155.61,22.491]
[1729094361847,6.4246,155.65,155.61,22.491]
[1729094362555,6.005,155.69,155.59,20.0]
[1729094362863,6.4238,155.67,155.63,22.4886]
[1729094363060,6.4236,155.68,155.64,6.425]
[1729094364745,6.4241,155.67,155.63,22.4887]
[1729094368944,16.0558,155.71,155.63,16.0634]
[1729094369145,6.4238,155.67,155.63,22.4887]
[1729094369663,28.67938276,155.73,155.63,16.0634]
[1729094369960,6.4229,155.7,155.66,6.4242]
[1729094370341,21.984,155.73,155.65,16.0614]
[1729094370546,4.79720739,155.72,155.65,16.0614]
[1729094370742,6.4227,155.7,155.66,6.4241]
[1729094373164,6.4218,155.72,155.68,6.4233]
[1729094373363,6.4214,155.73,155.69,6.4229]
[1729094374259,38.9922612,155.77,155.67,28.74472464]
[1729094374453,6.4218,155.72,155.68,6.4233]
[1729094381848,6.423,155.69,155.65,26.4242]
[1729094382267,6.4229,155.7,155.66,6.4242]
[1729094383348,16.0515,155.75,155.65,20.0]
[1729094383349,6.4223,155.71,155.67,6.4238]
[1729094386768,6.4219,155.72,155.68,6.4231]
[1729094389656,6.4214,155.73,155.69,6.423]
[1729094390359,22.9425612,155.77,155.67,12.68542464]
[1729094390685,6.4207,155.75,155.71,6.4221]
[1729094395860,6.4209,155.74,155.71,6.4221]
[1729094400837,6.4209,155.74,155.7,16.0563]
[1729094401287,16.8789612,155.77,155.7,16.0563]
[1729094401976,6.4207,155.75,155.71,6.4221]
[1729094404160,6.4206,155.75,155.71,19.10752464]
[1729094404365,6.4202,155.76,155.72,6.4217]
[1729094404580,16.0511,155.76,155.67,22.4825]
[1729094404883,6.4222,155.71,155.67,22.4825]
[1729094405658,6.4226,155.7,155.64,23.1885]
[1729094405864,0.6205612,155.77,155.64,22.4868]
[1729094405865,6.4237,155.68,155.64,22.4868]
[1729094406364,6.4225,155.71,155.65,12.68542464]
[1729094406562,0.7205612,155.77,155.69,6.4227]
[1729094406563,0.6205612,155.77,155.69,6.4227]
[1729094406883,6.4206,155.75,155.7,6.4222]
[1729094407260,6.4206,155.75,155.69,28.74232464]
[1729094407460,6.4206,155.75,155.71,6.4221]
[1729094408077,6.4206,155.75,155.69,28.74232464]
[1729094408078,6.4206,155.75,155.7,6.4225]
[1729094408288,6.4219,155.72,155.68,6.4233]
[1729094409665,6.4215,155.73,155.68,6.4233]
[1729094409864,6.4215,155.73,155.66,51.66212464]
[1729094410063,6.4215,155.73,155.69,6.4229]
[1729094411480,6.4209,155.74,155.7,6.4224]
[1729094412863,6.4204,155.76,155.71,6.422]
[1729094413059,7.0402612,155.77,155.72,6.4214]
[1729094413270,7.0402612,155.77,155.73,6.4213]
[1729094413689,0.6205612,155.77,155.75,6.4201]
[1729094415180,0.6205612,155.77,155.76,19.23101464]
[1729094415377,0.6205612,155.77,155.76,64.39131336]
[1729094415577,6.4159,155.87,155.76,64.39131336]
[1729094415578,6.69815322,155.87,155.82,6.4173]
[1729094415888,6.4156,155.87,155.82,6.4173]
[1729094416885,6.4156,155.87,155.81,16.0447]
[1729094416886,6.4163,155.86,155.81,22.4626]
[1729094417084,6.2789,155.88,155.79,6.4186]
[1729094417289,6.4169,155.84,155.79,6.4186]
[1729094417471,6.4173,155.83,155.79,6.4186]
[1729094418096,23.776884,155.87,155.75,16.0511]
[1729094418268,38.912884,155.87,155.75,16.0511]
[1729094419085,38.912884,155.87,155.75,22.4712]
[1729094419086,6.4185,155.8,155.75,22.4712]
[1729094419292,23.776884,155.85,155.75,22.4712]
[1729094419293,6.4189,155.79,155.75,16.0511]
[1729094419890,6.4197,155.77,155.72,16.054]
[1729094420096,0.1,155.8,155.68,21.9381]
[1729094420394,6.4214,155.73,155.69,16.0571]
[1729094421391,6.4218,155.72,155.67,6.4238]
[1729094421571,6.4222,155.71,155.66,22.4844]
[1729094424192,23.776884,155.75,155.66,16.0603]
[1729094424491,6.4218,155.72,155.66,16.0603]
[1729094424671,6.4218,155.72,155.67,6.4238]
[1729094425095,6.4222,155.71,155.66,22.4844]
[1729094426200,23.776884,155.75,155.66,16.0603]
[1729094426402,6.4218,155.72,155.66,22.4845]
[1729094426981,23.776884,155.75,155.68,6.4234]
[1729094427202,6.4215,155.73,155.68,6.4234]
[1729094427679,6.4217,155.72,155.67,6.4237]
[1729094428904,6.4222,155.71,155.66,22.4845]
[1729094429195,6.4222,155.71,155.65,6.4243]
[1729094429398,46.034384,155.75,155.62,59.966374]
[1729094429601,46.034384,155.75,155.62,43.902374]
[1729094429907,6.4223,155.71,155.66,6.4242]
[1729094430382,6.422,155.72,155.67,6.4237]
[1729094431101,6.2057,155.75,155.66,16.0599]
[1729094431285,12.6264,155.75,155.7,6.4225]
[1729094431487,6.4207,155.75,155.7,6.4225]
[1729094431806,22.3352,155.84,155.79,6.4188]
[1729094432005,22.3352,155.84,155.73,19.7853265]
[1729094432006,15.9184,155.84,155.78,16.0481]
[1729094432313,22.3353,155.84,155.78,22.4673]
[1729094432483,6.4164,155.85,155.8,6.4184]
[1729094432907,6.4164,155.85,155.79,6.4188]
[1729094433215,4.79163728,155.84,155.79,6.4188]
[1729094433389,6.4164,155.85,155.79,6.4188]
[1729094433588,4.79163775,155.84,155.79,6.4188]
[1729094433905,6.4164,155.85,155.79,6.4188]
[1729094435511,6.5503,155.87,155.79,6.4188]
[1729094435705,6.4169,155.84,155.79,6.4188]
[1729094436607,6.416,155.87,155.81,6.4178]
[1729094436813,6.2505,155.91,155.84,6.4167]
[1729094436997,6.4144,155.9,155.85,6.4164]
[1729094437191,6.69957755,155.89,155.86,6.4159]
[1729094437514,22.2182612,155.92,155.86,6.4159]
[1729094437685,6.4154,155.88,155.83,6.4171]
[1729094439604,15.8043612,155.92,155.83,6.4171]
[1729094439813,6.4148,155.89,155.83,6.4171]
[1729094440500,15.8043612,155.92,155.84,16.0414]
[1729094440501,0.6205612,155.92,155.84,16.0414]
[1729094440822,6.414,155.91,155.84,16.0414]
[1729094440998,6.4149,155.89,155.84,22.4581]
[1729094441816,6.4153,155.88,155.82,6.4173]
[1729094442611,6.4148,155.89,155.84,6.4167]
[1729094443320,6.4143,155.9,155.85,6.4164]
[1729094444224,6.4142,155.91,155.86,6.4159]
[1729094444627,6.4148,155.89,155.83,16.0428]
[1729094444825,0.6205612,155.92,155.83,22.4599]
[1729094444826,6.4152,155.88,155.83,22.4599]
[1729094445120,0.6205612,155.92,155.83,16.0428]
[1729094445495,6.4148,155.89,155.84,6.4168]
[1729094447714,6.4143,155.91,155.86,6.4159]
[1729094448134,7.0341612,155.92,155.87,6.4155]
[1729094448499,7.0341612,155.92,155.87,22.4538]
[1729094448705,0.6205612,155.92,155.87,22.4538]
[1729094450299,7.0342612,155.92,155.87,22.4538]
[1729094452397,6.4139,155.91,155.87,22.4538]
[1729094453702,0.6205612,155.92,155.88,6.415]
[1729094454408,0.6205612,155.92,155.85,20.0]
[1729094454622,6.4144,155.9,155.85,20.0]
[1729094454920,6.4144,155.9,155.86,6.4159]
[1729094455322,0.6205612,155.92,155.85,20.0]
[1729094455624,7.0340612,155.92,155.87,6.4153]
[1729094456724,0.6205612,155.92,155.89,6.4144]
[1729094456908,0.6205612,155.92,155.88,22.4523]
[1729094458244,0.6205612,155.92,155.89,6.4147]
[1729094461529,0.6205612,155.92,155.9,6.414]
[1729094461823,6.4144,155.9,155.86,6.4158]
[1729094462722,6.414,155.91,155.87,6.4155]
[1729094463022,0.6205612,155.92,155.85,20.0]
[1729094463209,0.6205612,155.92,155.88,6.4149]
[1729094463828,0.6205612,155.92,155.89,6.4144]
[1729094464032,0.6205612,155.92,155.9,6.4143]
[1729094464325,0.6205612,155.92,155.87,16.0385]
[1729094464504,0.6205612,155.92,155.9,6.414]
[1729094464701,0.6205612,155.92,155.91,6.4139]
[1729094465311,0.6205612,155.92,155.9,6.414]
[1729094466501,0.6205612,155.92,155.89,22.4508]
[1729094466709,7.0340612,155.92,155.89,16.0362]
[1729094467329,0.6205612,155.92,155.89,16.0362]
[1729094467930,0.6205612,155.92,155.89,22.4505]
[1729094468602,0.6205612,155.92,155.9,6.4143]
[1729094470032,0.6205612,155.92,155.89,16.0362]